Nominal Code Description,Nominal Code,Transaction Detail,Date Paid,Net,Payee Name
Allotments,4301,Nowton Road site tree/hedge works,14/05/2015,840.25,St Edmundsbury Borough Council
Allotments,4301,Sicklesmere Road site fence remove/replace,14/05/2015,976.17,St Edmundsbury Borough Council
Allotments,4301,Cottan Lane E plots rent 1.9.13-31.8.14,14/10/2015,851.00,St Edmundsbury Borough Council
Allotments,4301,Cotton Lane site water 3.9.15-24.11.15,14/12/2015,517.90,Anglian Water
Allotments,4301,"Allotment sites annual routine maintenance, Cotton Lane dip tank pipe repair",14/01/2016,534.20,St Edmundsbury Borough Council
Audit -External,4113,External audit y/end 31 Mar 15,31/07/2015,600.00,BDO LLP
Bury in Bloom Basic,4203,Abbygt hngng bsktsx6 sum/wintr,31/05/2015,"3,600.00",Bury In Bloom
Bury in Bloom Basic,4203,22 additional winter baskets,25/01/2016,"1,320.00",Bury In Bloom
Election Expenses,4128,Ordinary elections 7 May 2015,30/11/2015,"18,208.66",St Edmundsbury Borough Council
Grant funding,4215,Grant - LiberTeas event 14 Jun,01/06/2015,500.00,St Edmundsbury Cathedral
Grant funding,4215,Grant - computer upgrades etc,08/07/2015,"1,138.00",Suffolk West Citizens Advc Bur
Grant funding,4215,Grant - sports activities,17/08/2015,950.00,Catch22
Grant funding,4215,Grant - Priors est playground,28/09/2015,"10,000.00",St Edmundsbury Borough Council
Grant funding,4215,Grant - lighting on the Butts,18/11/2015,"2,000.00",Saxon Gate Community Assoc.
Grant funding,4215,Grant - School Yard lighting,30/11/2015,"1,000.00",Bury In Bloom
Grant funding,4215,Grant - Magna Carta sculpture,30/11/2015,"2,000.00","Bury Society, Magna Carta 800"
Grant funding,4215,Grant - Ice rink,16/12/2015,"3,000.00",BSE BIDCO Ltd
Grant funding,4215,Womens Cycle Tour events Jun15,14/02/2016,"2,500.00",St Edmundsbury Borough Council
Grant funding,4215,Grant - handrails to Quire,29/02/2016,"2,130.00",St Edmundsbury Cathedral
Grant funding,4215,Safety barriers perimeter fenc,23/03/2016,"4,188.00",Bury St Edmunds Rugby Club Ltd
Grant funding,4215,Disabled access rear door,23/03/2016,"1,000.00",BSE & District Deaf & Har OH A
Grant funding,4215,Summer school project,23/03/2016,"1,000.00",Spinning Wheel Ltd
Insurance,4133,Insurance renewal 1.9.15,17/08/2015,"2,062.98",Community First Trading
Litter Bins,4386,10 cast iron bins with logo,14/05/2015,"7,570.00",St Edmundsbury Borough Council
Litter Bins,4386,Bin emptying 1.4-30.6 (13wks),14/07/2015,910.00,St Edmundsbury Borough Council
Litter Bins,4386,Bin emptying JUL-SEP15,14/10/2015,921.20,St Edmundsbury Borough Council
Litter Bins,4386,Litter bin-HospitalRd/PriorsAv,15/10/2015,599.98,St Edmundsbury Borough Council
Litter Bins,4386,Bin emptying 1.10 - 31.12.15,14/01/2016,982.80,St Edmundsbury Borough Council
Locality budgets,4351,Chequer Square planters,30/11/2015,900.00,Bury In Bloom
Locality budgets,4351,School 10th anniv celebrations,30/11/2015,500.00,Friends of Abbots Green
Locality budgets,4351,Border sleepers,29/02/2016,500.00,Southgate Community Partnrship
Locality budgets,4351,Easter workshops,29/02/2016,"1,000.00",Spinning Wheel Ltd
Locality budgets,4351,Community garden works,24/03/2016,"1,725.30",Horringer Court Residents Asso
Locality budgets,4351,Repairs to fabric of building,24/03/2016,"1,860.00",Christ Church Moreton Hall
Locality budgets,4351,Disabled acc rear entrnce door,24/03/2016,"1,000.00",BSE & Dstrct Deaf & Hard O H A
Locality budgets,4351,Base for storage container,24/03/2016,500.00,Milkmaid Folk Arts Centre CIC
Office Rental,4141,Office rent 25.6-29.9.15,19/06/2015,"2,793.75",E Harris t/as Angel Hill Comme
Office Rental,4141,Office rent 29.9.15-24.12.15,29/09/2015,"2,793.75",E Harris t/as Angel Hill Comme
Office Rental,4141,Office rent 25.12.15-24.03.16,23/12/2015,"2,793.75",E Harris t/as Angel Hill Comme
Office Rental,4141,Office rent 25.3.16-24.6.16,24/03/2016,"2,793.75",E Harris t/as Angel Hill Comme
Office Service Charge,4142,Offce srvc chrg 25.6 - 24.9.15,14/07/2015,995.47,Eastern Facilities Mgmt Soluti
Office Service Charge,4142,Office serv chrg 25.9-24.12.15,31/10/2015,995.47,Vertas Group Ltd
Office Service Charge,4142,Offc servc chrge 25.12-31.3.16,24/03/2016,995.47,Vertas Group Ltd
Recruitment Advertising,4006,Allotments & Administrative Assistant recruitment advertisement (Bury Free Press),13/08/2015,732.00,Johnston Publishing Ltd
Salt/Grit Bins,4391,Grit bins x6 200ltr yellow,23/02/2016,575.94,Wybone Ltd
Subscriptions,4154,Subscription 2015/16,29/04/2015,"2,704.00",Suffolk Assn. Local Councils
War Memorials,4395,War Memorials cleaning,18/11/2015,"1,166.67",Saxon Monumental Craft
